Cogmind - Beta 15 @@@ ROGUE MODE // 2025.05.18 @ 16:23:51 Player: Spitfire Result: Destroyed by Y-45 Defender with Heavy Assault Rifle Performance ------------- Evolutions (1) 500 Regions Visited (4) 800 Robots Destroyed (0) 0 Value Destroyed (0) 0 Prototype IDs (0) 0 Alien Tech Used (0) 0 Bonus (200) 200 TOTAL SCORE: 1500 Bonus ------- Pacifist 200 Cogmind --------- Core Integrity 0/400 Matter 250/300 Energy 98/100 System Corruption 0% Temperature Cool (0) Movement Core (50) Location -9/Storage Parts ------- > --- POWER (1) -------- (None) > --- PROPULSION (2) --- (None) > --- UTILITY (4) ------ Advanced Weight Redist. System Signal Interpreter ECM Suite Core Shielding > --- WEAPON (2) ------- (None) > --- INVENTORY (5) ---- Advanced Weight Redist. System Core Shielding Core Shielding Peak State ------------ > --- POWER ------------ (None) > --- PROPULSION ------- Improved Hover Unit Improved Hover Unit > --- UTILITY ---------- Advanced Weight Redist. System Signal Interpreter ECM Suite Hardened Light Armor Plating > --- WEAPON ----------- Great Maul > --- INVENTORY -------- Advanced Weight Redist. System Core Shielding Core Shielding Core Shielding [Rating: 14] Favorites ----------- Power Light Ion Engine Engine Light Ion Engine Propulsion Hover Unit Hover Unit Hover Unit Utility ECM Suite Device ECM Suite Processor Signal Interpreter Protection Core Shielding Weapon Mining Laser Special Weapon Mining Laser Impact Weapon Great Maul Build | -11 -10 -10 -9 -9 ------- Run | Yrd Mat Min Mat Sto Slots Evolved 2 | . . . 2 . Power . | . . . . . Propulsion . | . . . . . Utility 2 | . . . 2 . Weapon . | . . . . . Parts Attached 17 | 1 7 1 7 1 Power 2 | 1 . 1 . . Engine 2 | 1 . 1 . . Core . | . . . . . Reactor . | . . . . . Propulsion 5 | . 2 . 3 . Treads . | . . . . . Leg . | . . . . . Wheel . | . . . . . Hover 5 | . 2 . 3 . Flight . | . . . . . Utility 7 | . 3 . 3 1 Device 3 | . 2 . 1 . Storage . | . . . . . Processor 1 | . 1 . . . Hackware . | . . . . . Protection 3 | . . . 2 1 Artifact . | . . . . . Weapon 3 | . 2 . 1 . Energy Gun . | . . . . . Energy Cannon . | . . . . . Ballistic Gun . | . . . . . Ballistic Cannon . | . . . . . Launcher . | . . . . . Special Weapon 2 | . 2 . . . Impact Weapon 1 | . . . 1 . Slashing Weapon . | . . . . . Piercing Weapon . | . . . . . Special Melee Weapon . | . . . . . Unidentified Prototypes . | . . . . . Parts Lost 6 | . . 3 3 . Power 1 | . . . 1 . Propulsion 4 | . . 2 2 . Utility . | . . . . . Weapon 1 | . . 1 . . Highest Loss Streak 3 | . . 3 3 . To Critical Strikes . | . . . . . Average Backups 2 | . 1 4 4 3 Power . | . . 1 . . Propulsion . | . . . . . Utility 2 | . . 3 3 3 Weapon . | . . . . . Tool/Special . | . . . . . Unused Backups 2 | . . . . 2 Power . | . . . . . Propulsion . | . . . . . Utility 2 | . . . . 2 Weapon . | . . . . . Tool/Special . | . . . . . Average Slot Usage (%) 48 | . 31 64 59 44 Engine 4 | . 2 6 7 . Hover 9 | . 6 19 8 . Device 17 | . 17 14 21 22 Processor 9 | . 4 14 11 11 Protection 3 | . . . 8 11 Special Weapon 3 | . 1 9 . . Peak Build Rating 14 | 1 5 6 14 6 Average Rating 4 | . 2 4 9 6 On Entrance 2 | . 1 5 2 5 Naked Turns . | . . . . . Heaviest Build 11 | 3 3 8 11 3 Greatest Support 14 | 3 12 12 14 3 Greatest Overweight (x) 1 | . . 1 1 . Average Overweight (x) . | . . . . . Largest Inventory Capacity 5 | 5 5 5 5 5 Average Capacity 5 | 5 5 5 5 5 Most Carried 5 | . 4 4 5 3 Average Carried 2 | . 1 4 4 3 Final Capacity 5 | 5 5 5 5 5 Final Carried 4 | . 4 4 4 3 Class Distribution -------------------- 100% | Mutant Dominant Class ---------------- Mutant | -10/Materials Mutant | -10/Mines Mutant | -9/Materials Mutant | -9/Storage Resources | -11 -10 -10 -9 -9 ----------- Run | Yrd Mat Min Mat Sto Matter Collected 320 | 210 12 52 . 46 Remotely 12 | . 12 . . . Salvage Created . | . . . . . Parts . | . . . . . Haulers Intercepted . | . . . . . Recyclers Shooed . | . . . . . Parts Field Recycled . | . . . . . Retrieved Matter . | . . . . . Parts Self-Destructed . | . . . . . Prevented . | . . . . . Kills | -11 -10 -10 -9 -9 ------- Run | Yrd Mat Min Mat Sto Combat Hostiles Destroyed . | . . . . . Classes Destroyed . | . . . . . Best Kill Streak . | . . . . . Combat Bots Only . | . . . . . Max Kills in Single Turn . | . . . . . Gunslinging . | . . . . . Exploded . | . . . . . Melee . | . . . . . Uniques/NPCs Destroyed . | . . . . . Combat | -11 -10 -10 -9 -9 -------- Run | Yrd Mat Min Mat Sto Hostile Shots Fired 136 | . 14 39 63 20 Missed 55 | . 6 19 19 11 Hits 81 | . 8 20 44 9 Melee 6 | . . . 6 . Projectile 75 | . 8 20 38 9 Critical Strikes 5 | . . . 4 1 Actively Blocked 1 | . . . . 1 Damage Taken 1110 | . 76 179 658 197 Core 558 | . 70 78 257 153 Absorbed by Shields . | . . . . . Redirected to Shielding 33 | . . . . 33 Core Remaining (%) 70 | 100 . 40 . . Volleys Fired 4 | . . 4 . . Largest 1 | . . 1 . . Hottest 100 | . . 100 . . Shots Fired 4 | . . 4 . . Gun . | . . . . . Cannon . | . . . . . Launcher . | . . . . . Special 4 | . . 4 . . Kinetic . | . . . . . Thermal 4 | . . 4 . . Explosive . | . . . . . Electromagnetic . | . . . . . Robot Hit Streak . | . . . . . Robot Miss Streak . | . . . . . Penetration Max . | . . . . . Secondary Targets . | . . . . . Shots Hit Robots . | . . . . . Core Hits . | . . . . . Critical Kills . | . . . . . Critical Parts Destroyed . | . . . . . Critical Strikes . | . . . . . Melee Attacks 6 | . . . 6 . Impact 6 | . . . 6 . Slashing . | . . . . . Piercing . | . . . . . Sneak Attacks . | . . . . . Combat Hostiles . | . . . . . Follow-up Attacks . | . . . . . Damage Inflicted . | . . . . . Guns . | . . . . . Cannons . | . . . . . Explosions . | . . . . . Melee . | . . . . . Ramming . | . . . . . Kinetic . | . . . . . Thermal . | . . . . . Explosive . | . . . . . Electromagnetic . | . . . . . Impact . | . . . . . Slashing . | . . . . . Piercing . | . . . . . Highest Corruption . | . . . . . Average Corruption . | . . . . . Corruption Purged . | . . . . . Corruption Blocked . | . . . . . Overload Shots . | . . . . . Overflow Damage . | . . . . . Projectiles . | . . . . . Explosions . | . . . . . Melee . | . . . . . Knockbacks . | . . . . . Impact . | . . . . . Kinetic . | . . . . . Secondary . | . . . . . Self-Inflicted Damage . | . . . . . Shots . | . . . . . Rammed . | . . . . . Targets Rammed . | . . . . . Kicked . | . . . . . Crushed . | . . . . . Highest Temperature . | . . . . . Average Temperature . | . . . . . Received Heat Transfer 330 | . 30 15 234 51 Siege Activations . | . . . . . Martial Activations . | . . . . . Shielding Activations . | . . . . . Robots Disrupted . | . . . . . Combat Hostiles . | . . . . . Robots Corrupted . | . . . . . Combat Hostiles . | . . . . . Parts Fried . | . . . . . Impact Corruptions . | . . . . . Robots Melted . | . . . . . Combat Hostiles . | . . . . . Parts Melted . | . . . . . Heat Transferred . | . . . . . Parts Sabotaged . | . . . . . Parts Stolen . | . . . . . Parts Stripped . | . . . . . Power Chain Reactions . | . . . . . Alert | -11 -10 -10 -9 -9 ------- Run | Yrd Mat Min Mat Sto Maximum Alert Level . | . . . . . Low Security (%) 100 | 100 100 100 100 100 Level 1 . | . . . . . Level 2 . | . . . . . Level 3 . | . . . . . Level 4 . | . . . . . Level 5 . | . . . . . High Security . | . . . . . Max Security . | . . . . . Peak Influence 84 | . 60 45 4 84 Initial 3 | . . 3 1 . Average 13 | . 19 10 . 21 Influence Increases 282 | . 110 62 6 104 Destroy 0b10 Robot/C 20 | . . . . 20 Allied During Kill 1 | . . . . 1 Successful Hack 28 | . 5 . . 23 Destroy Structure 8 | . . 2 6 . Partial Spotted 15 | . . . . 15 Lose Combat Pursuer 210 | . 105 60 . 45 Influence Decreases 198 | . 100 67 10 21 Entered New Map 12 | . . 7 4 1 Time Decay 161 | . 95 45 1 20 Lost Part 20 | . . 15 5 . Purge Threat 5 | . 5 . . . Squads Dispatched 8 | . 3 . 2 3 Investigation 4 | . 2 . 1 1 Extermination . | . . . . . Reinforcement 4 | . 1 . 1 2 Assault . | . . . . . Garrison . | . . . . . Intercept . | . . . . . Searches Triggered . | . . . . . Construction Impeded . | . . . . . Haulers Reinforced . | . . . . . Active Scanning Responses . | . . . . . Cargo Convoy Interrupts . | . . . . . Stealth | -11 -10 -10 -9 -9 --------- Run | Yrd Mat Min Mat Sto Distress Signals 3 | . 1 . 2 . Communications Jammed . | . . . . . Distress Signals . | . . . . . Times Spotted 60 | . 14 14 19 13 Peak Tracking Total 18 | . 7 18 15 11 Tactical Retreats 11 | . 3 5 1 2 Traps | -11 -10 -10 -9 -9 ------- Run | Yrd Mat Min Mat Sto Traps Triggered 4 | . 1 . 1 2 Indirectly . | . . . . . Trap Hack Attempts . | . . . . . Triggered . | . . . . . Disarmed . | . . . . . Reprogrammed . | . . . . . Reused . | . . . . . Traps Extracted . | . . . . . Installed . | . . . . . Triggered . | . . . . . Machines | -11 -10 -10 -9 -9 ---------- Run | Yrd Mat Min Mat Sto Machines Disabled . | . . . . . Max in Single Turn . | . . . . . Machines Repaired . | . . . . . Machines Dismantled . | . . . . . Machines Sabotaged . | . . . . . Overloaded Fab Kills . | . . . . . Hacking | -11 -10 -10 -9 -9 --------- Run | Yrd Mat Min Mat Sto Machines Accessed 8 | . 5 . . 3 Terminals 7 | . 5 . . 2 Fabricators . | . . . . . Repair Stations . | . . . . . Recycling Units . | . . . . . Scanalyzers . | . . . . . Garrison Access 1 | . . . . 1 Total Hacks 22 | . 12 . . 10 Successful 9 | . 4 . . 5 Failed 13 | . 8 . . 5 Catastrophic 4 | . 2 . . 2 Database Lockouts . | . . . . . Manual 17 | . 11 . . 6 Terminals 18 | . 12 . . 6 Fabricators . | . . . . . Repair Stations . | . . . . . Recycling Units . | . . . . . Scanalyzers . | . . . . . Garrison Access 4 | . . . . 4 Terminal Hacks 4 | . 2 . . 2 Robot Analysis 2 | . 1 . . 1 Terminal Index 1 | . . . . 1 Unreport Threat 1 | . 1 . . . Fabricator Hacks . | . . . . . Repair Station Hacks . | . . . . . Recycling Unit Hacks . | . . . . . Scanalyzer . | . . . . . Garrison Access Hacks . | . . . . . Unauthorized Hacks 5 | . 2 . . 3 Terminals 3 | . 2 . . 1 Botnet 3 | . 2 . . 1 Fabricators . | . . . . . Repair Stations . | . . . . . Recycling Units . | . . . . . Scanalyzers . | . . . . . Garrison Access 2 | . . . . 2 Broadcast 1 | . . . . 1 Reprogram 1 | . . . . 1 Data Cores Recovered . | . . . . . Used . | . . . . . Hacking Detections 7 | . 5 . . 2 Full Trace Events 2 | . 1 . . 1 Feedback Events . | . . . . . Feedback Blocked . | . . . . . Robot Schematics Acquired . | . . . . . Robots Built . | . . . . . Authchips . | . . . . . Time . | . . . . . Total Robot Build Rating . | . . . . . Part Schematics Acquired . | . . . . . Parts Built . | . . . . . Authchips . | . . . . . Time . | . . . . . Total Part Build Rating . | . . . . . Parts Repaired . | . . . . . Time . | . . . . . Parts Recycled . | . . . . . Recycled Matter . | . . . . . Retrieved Matter . | . . . . . Retrieved Components . | . . . . . Parts Scanalyzed . | . . . . . Part Schematics Acquired . | . . . . . Parts Damaged . | . . . . . Bothacking | -11 -10 -10 -9 -9 ------------ Run | Yrd Mat Min Mat Sto Used RIF Installer . | . . . . . Robots Hacked . | . . . . . Non-combat . | . . . . . Combat . | . . . . . Robot Hacks Applied . | . . . . . Relay Couplers Released . | . . . . . Fabnet Peak Effective % . | . . . . . Robots Rewired . | . . . . . Allies Hacked . | . . . . . Hacks Repelled . | . . . . . Allies | -11 -10 -10 -9 -9 -------- Run | Yrd Mat Min Mat Sto Total Allies 2 | . . . . 2 Largest Group 2 | . . . . 2 Highest-Rated Group 16 | . . . . 16 Highest-Rated Ally 8 | . . . . 8 Total Orders . | . . . . . Ally Attacks 9 | . . . . 9 Total Damage 76 | . . . . 76 Kills 1 | . . . . 1 Allies Corrupted . | . . . . . Allies Melted . | . . . . . Intel | -11 -10 -10 -9 -9 ------- Run | Yrd Mat Min Mat Sto Active Infowar (turns) 156 | . 37 60 59 . ECM 156 | . 37 60 59 . Robot Analysis Total 2 | . 1 . . 1 Derelict Logs Recovered 1 | . . 1 . . Drone Launches . | . . . . . Drone Recoveries . | . . . . . Exploration | -11 -10 -10 -9 -9 ------------- Run | Yrd Mat Min Mat Sto Turns Passed 709 | 14 274 215 127 79 Spaces Moved 1141 | 25 478 355 151 132 Core 785 | 25 373 157 98 132 Treads . | . . . . . Legs . | . . . . . Wheels . | . . . . . Hover 356 | . 105 198 53 . Flight . | . . . . . Fastest Speed 50 | 50 50 50 50 50 Average Speed 52 | 50 51 53 53 50 Slowest Speed 120 | 50 60 120 120 50 Overloaded Moves . | . . . . . Propulsion Burnouts . | . . . . . Robots Hopped . | . . . . . Potential Cave-ins . | . . . . . Cave-ins Triggered . | . . . . . Exploration Rate (%) 42 | 3 80 77 23 30 Regions Visited 4 Branch Regions 2 Pre-discovered Areas 1 | . . 1 . . Known Exits Taken 3 | . 1 1 1 . Unknown Exits Taken 1 | 1 . . . . Scrap Searched 1 | . . 1 . . Spaces Dug 10 | . . 4 6 . Terrain Destroyed 10 | . . 4 6 . Melee 6 | . . . 6 . Projectile 4 | . . 4 . . AOE . | . . . . . Terrain Rammed . | . . . . . Walls Destroyed . | . . . . . Machines Disabled . | . . . . . Actions | -11 -10 -10 -9 -9 --------- Run | Yrd Mat Min Mat Sto Total 1223 | 25 504 366 183 145 Wait 43 | . 14 6 11 12 Move 1137 | 24 477 354 150 132 Hop . | . . . . . Pick Up 6 | . 3 . 3 . Fast Attach 14 | 1 7 1 5 . Attach 5 | . . . 4 1 Detach 2 | . 1 . 1 . Swap 1 | . . . 1 . Drop 5 | . 2 1 2 . Fire 4 | . . 4 . . Melee 6 | . . . 6 . Ram . | . . . . . Kick . | . . . . . Crush . | . . . . . Escape Stasis . | . . . . . Rewire . | . . . . . Trap . | . . . . . Miscellaneous . | . . . . . Route ------- -11/Scrapyard -10/Materials (discovered 3 exits: *Mat x2 / *Min) -10/Mines (discovered 2 exits: *Mat x2) -9/Materials (discovered 2 exits: Min / *Sto) -9/Storage History --------- Turn | Location | Event 4 | -11/Scrapyard | Discovered new exit (range 16) 15 | -11/Scrapyard | Entered Materials 52 | -10/Materials | Discovered new exit (range 13) 141 | -10/Materials | Discovered new exit (range 3) 277 | -10/Materials | Discovered new exit (range 9) 283 | -10/Materials | Identified exit to Mines 289 | -10/Materials | Entered Mines 290 | -10/Mines | Learned location of Storage (-9) 293 | -10/Mines | Assembled infested the area 298 | -10/Mines | Assisted by a Guerilla fighting off Assembled 308 | -10/Mines | Build established: Mutant 332 | -10/Mines | Discovered new exit (range 16) 340 | -10/Mines | Identified exit to Materials 450 | -10/Mines | Core integrity fell below 50% 479 | -10/Mines | Lost 3 parts (2n1w) 484 | -10/Mines | Found a hidden stash of uninstalled traps 497 | -10/Mines | Discovered exit to Materials (range 6) 504 | -10/Mines | Entered Materials 504 | -9/Materials | Evolved 2 slots: Utility x2 505 | -9/Materials | Identified exit to Mines 624 | -9/Materials | Core integrity fell below 50% 628 | -9/Materials | Discovered new exit (range 7) 630 | -9/Materials | Identified exit to Storage 631 | -9/Materials | Entered Storage 653 | -9/Storage | Lost 3 parts (1p2n) 696 | -9/Storage | Core integrity fell below 20% 710 | -9/Storage | Destroyed by Y-45 Defender with Heavy Assault Rifle Last Messages --------------- Found 9 terminals. Downloaded coordinate data. 00665_ ALERT: Hostiles spotted, dispatching reinforcements to Terminal S012. 00666_ Connecting with Terminal... 00688_ Connecting with Garrison Access... >>Trojan(Broadcast) Trojan loaded successfully. Testing... Broadcasting enabled and active. >>Trojan(Reprogram) Trojan loaded successfully. Testing... Dispatch confirmation system compromised. 00700_ >> BROADCAST: Garrison Access S001 dispatching Reinforcement squad: 2x G-34 Mercenary. 00700_ ALERT: Suspicious activity at Garrison Access S001. Dispatching Investigation squad. 00700_ ALERT: Hostiles spotted, dispatching reinforcements to Terminal S007. Map ----- +----------------------------------------------------+ | #?????# ##### #??? ??# #????????????????? | | ??????#+????# #???##+##### ###??????????????? | | ?????????#### ##### #??????????????? | | ?????????+ +??????????????? | | ?????????####### #??????????????? | | ???????????????# ######## ##??????????????? | | ???????????????# #??????# #???????????????? | | ???????????????# ######?# #???????????????? | | ???????????????# ## " #?# #???????????????? | | ?????????????? ##"G"#?# #???????????????? | | ?????????????###+## ##" "###+#???????????????? | | ??????????????????# # #???????????????? | | ??????????????????# # """"" #???????????????? | | ??????????????????# # """"" #???????????????? | | ??????????????????# # """"" #???????????????? | | ??????????????????# # #???????????????? | | ??????????????????# + """"" #???????????????? | | ??????????????????# # """"" #???????????????? | | ??????????????????# # """"" #???????????????? | | ??????????????????#g # #???????????????? | | ??????????????????# ##########?# ###?????????? | | ???????????######## ########## #?????????? | | ???????????# #?????????? | | ???????????# Y #?????????? | | ???????????# l #?????????? | | ???????????######## @###### #?????????? | | ??????????????????# #????????????????????? | | ??????????????????# #????????????????????? | | ??????????????????#######/#######??????????????? | | ???????????????????????#gg ##### #??????? | | ???????????????????????# """ / #??????? | | ???????????????????????# """ ##### #??????? | | ?????????????????##????# """ #??????????????? | | ?????????????????# ??# """ #??????????????? | | ?????????????????# #Y""" #??????????????? | | ??????????+ / #??????????????? | | ?????????????????# # #??????????????? | | ?????????????????# # #??????????????? | | ?????????????????## ?##########??????????????? | | ??????????????????# ??????????????????????????? | | ??????????????????# ???????????????????????????? | | ??????????????????# ???????????????????????????? | | ??????????????????#????????????????????????????? | | ???????????????????????????????????????????????? | | ???????????????????????????????????????????????? | | ???????????????????????????????????????????????? | | ???????????????????????????????????????????????? | | ???????????????????????????????????????????????? | | ???????????????????????????????????????????????? | | ???????????????????????????????????????????????? | +----------------------------------------------------+ Best States ------------- Heat Dissipation 28 Energy Generation 10 Energy Capacity 250 Matter Stores 300 Matter Capacity 300 Sight Range 16 Terrain Scan Density 10 ECM Strength 1 Additional Mass Support 9 Armor Coverage 150 Core Shielding 20 Evasion (%) 53 Item Schematics ----------------- None Robot Schematics ------------------ None Fabricated ------------ Nothing Repaired ---------- Nothing Alien Tech Used ----------------- None Achievements -------------- I Survived The Infestation Challenges ------------ None Game ------ Seed GatlingThrusterActivator Manual? 0 Play Time 00:18:55 Cumulative 31.9 hours Start 2025.05.18 @ 16:03:52 End 2025.05.18 @ 16:23:51 Sessions 1 Manual Loads 0 Difficulty Rogue Special Mode None Game No. 18 Rogue 18 Adventurer 0 Explorer 0 Win Type - Total 3 Types 3/0/0/0/0/0/0/0/0/0 Lore% 20 Gallery% 30 Achievement% 28 Wizard Run 0 Options --------- Layout 0 ASCII 0 Keyboard 0 Movement Mouse Keybinds 0 Fullscreen 2 Font 18/Terminus Map View 76x50 Zoom Use 0% Tactical HUD 1 Map Filters NONE Filters NONE Steam 1 RUN: a02a98be-08aa-4cd5-882e-bae0c1451228